bitfinex/quotes_BTCUSD_20241025
["timestamp","ask_amount","ask_price","bid_price","bid_amount"]
[1729828112920,0.98162863,68062.0,68061.0,0.000825]
[1729828113669,0.98162856,68062.0,68061.0,0.000825]
[1729828114892,0.98362856,68062.0,68061.0,0.000825]
[1729828116317,0.61752671,68062.0,68061.0,0.000825]
[1729828116559,0.76577066,68062.0,68061.0,0.000825]
[1729828116773,0.87052251,68062.0,68061.0,0.000825]
[1729828116976,0.72234359,68062.0,68061.0,0.000825]
[1729828117126,0.71734359,68062.0,68061.0,0.000825]
[1729828118551,0.96140274,68062.0,68061.0,0.000825]
[1729828118775,0.86360274,68062.0,68061.0,0.000825]
[1729828120065,0.71534359,68062.0,68061.0,0.000825]
[1729828120249,0.86360274,68062.0,68061.0,0.000825]
[1729828121704,0.71534359,68062.0,68061.0,0.000825]
[1729828121956,0.85360274,68062.0,68061.0,0.000825]
[1729828122159,0.86360274,68062.0,68061.0,0.000825]
[1729828122364,0.71534359,68062.0,68061.0,0.000825]
[1729828122747,0.86360274,68062.0,68061.0,0.000825]
[1729828123106,0.85360274,68062.0,68061.0,0.000825]
[1729828123312,0.86360274,68062.0,68061.0,0.000825]
[1729828123653,0.86560274,68062.0,68061.0,0.000825]
[1729828124056,0.71734359,68062.0,68061.0,0.000825]
[1729828124264,0.86567201,68062.0,68061.0,0.000825]
[1729828125002,0.71734359,68062.0,68061.0,0.000825]
[1729828125888,0.86567627,68062.0,68061.0,0.000825]
[1729828126292,0.86567307,68062.0,68061.0,0.000825]
[1729828127115,0.71734359,68062.0,68061.0,0.000825]
[1729828127321,0.86568074,68062.0,68061.0,0.000825]
[1729828128528,0.71734359,68062.0,68061.0,0.000825]
[1729828128733,0.86568074,68062.0,68061.0,0.000825]
[1729828129184,0.86577038,68062.0,68061.0,0.000825]
[1729828133392,0.86843121,68062.0,68061.0,0.000825]
[1729828136175,0.72004208,68062.0,68061.0,0.000825]
[1729828138015,0.8684544,68062.0,68061.0,0.000825]
[1729828138236,0.72007603,68062.0,68061.0,0.000825]
[1729828138933,0.71807603,68062.0,68061.0,0.000825]
[1729828139462,0.72007603,68062.0,68061.0,0.000825]
[1729828140161,0.80167603,68062.0,68061.0,0.000825]
[1729828140650,0.79967603,68062.0,68061.0,0.000825]
[1729828140929,1.08707788,68062.0,68061.0,0.000825]
[1729828141356,1.08706164,68062.0,68061.0,0.000825]
[1729828141580,1.08706171,68062.0,68061.0,0.000825]
[1729828142068,0.5868367,68058.0,68057.0,0.001652]
[1729828142284,0.8996589,68058.0,68057.0,0.001652]
[1729828142729,0.8976589,68058.0,68057.0,0.001652]
[1729828143843,0.9879089,68058.0,68057.0,0.001652]
[1729828144465,0.9859089,68058.0,68057.0,0.001652]
[1729828146412,0.98779799,68058.0,68057.0,0.001652]
[1729828147359,0.98579799,68058.0,68057.0,0.001652]
[1729828147593,0.98779799,68058.0,68057.0,0.001652]
[1729828149047,0.98579799,68058.0,68057.0,0.001652]
[1729828150198,1.20619986,68058.0,68057.0,0.001652]
[1729828150419,1.20619986,68058.0,68057.0,1e-06]
[1729828150420,1.38615171,68058.0,68057.0,1e-06]
[1729828150634,1.06299799,68058.0,68057.0,1e-06]
[1729828152000,0.6729957,68054.0,68053.0,0.001613]
[1729828152210,0.98570699,68054.0,68053.0,0.001613]
[1729828153305,1.31416265,68054.0,68053.0,0.001613]
[1729828153507,1.2114108,68054.0,68053.0,0.001613]
[1729828154532,1.2094108,68054.0,68053.0,0.001613]
[1729828154743,1.21779226,68054.0,68053.0,0.001613]
[1729828154951,1.21779226,68054.0,68049.0,0.001662]
[1729828154952,0.12625,68050.0,68049.0,0.001662]
[1729828155168,0.88096314,68050.0,68049.0,0.001662]
[1729828155784,0.8806911,68050.0,68049.0,0.001662]
[1729828158323,1.03519491,68050.0,68049.0,0.001662]
[1729828158527,1.03619491,68050.0,68049.0,0.001662]
[1729828158948,1.04019491,68050.0,68049.0,0.001662]
[1729828159186,0.8876911,68050.0,68049.0,0.001662]
[1729828159599,0.8876911,68050.0,68049.0,0.002662]
[1729828159600,1.0426388,68050.0,68049.0,0.002662]
[1729828159807,1.0356388,68050.0,68049.0,0.001662]
[1729828160010,1.0406388,68050.0,68049.0,0.001662]
[1729828160210,1.0486388,68050.0,68049.0,0.002662]
[1729828160965,1.19914261,68050.0,68049.0,0.002662]
[1729828161591,0.9006911,68050.0,68049.0,0.002662]
[1729828162011,0.9006911,68050.0,68047.0,0.00042562]
[1729828162012,0.373205,68048.0,68047.0,0.00042562]
[1729828162193,0.68564425,68048.0,68047.0,0.00042562]
[1729828163287,0.68564425,68048.0,68047.0,0.00142562]
[1729828163288,1.01479797,68048.0,68047.0,0.00142562]
[1729828163513,0.7943961,68048.0,68047.0,0.00142562]
[1729828163733,0.69164425,68048.0,68047.0,0.00142562]
[1729828164683,0.69464425,68048.0,68047.0,0.00142562]
[1729828165427,0.69644279,68048.0,68047.0,0.00142562]
[1729828166479,0.69444279,68048.0,68047.0,0.00142562]
[1729828167437,0.69699982,68048.0,68047.0,0.00142562]
[1729828167646,0.69899982,68048.0,68047.0,0.00142562]
[1729828167857,0.69644279,68048.0,68047.0,0.00142562]
[1729828168063,0.69444279,68048.0,68047.0,0.00142562]
[1729828168272,0.69644279,68048.0,68047.0,0.00142562]
[1729828170380,0.53470881,68048.0,68047.0,0.00142562]
[1729828170622,0.69641918,68048.0,68047.0,0.00142562]
[1729828171989,0.84692299,68048.0,68047.0,0.00142562]
[1729828172499,0.84692299,68048.0,68044.0,0.001662]
[1729828172500,0.352211,68045.0,68044.0,0.001662]
[1729828172756,1.11640269,68045.0,68044.0,0.001662]
[1729828172987,0.96657703,68045.0,68044.0,0.001662]
[1729828173221,0.96657703,68045.0,68044.0,1e-06]
[1729828173676,1.27566033,68045.0,68044.0,1e-06]
[1729828174366,1.12985488,68045.0,68044.0,1e-06]
[1729828174586,1.27765011,68045.0,68044.0,1e-06]
[1729828175451,1.21912411,68045.0,68044.0,1e-06]
[1729828175664,1.22212411,68045.0,68044.0,1e-06]
[1729828176094,1.22012411,68045.0,68044.0,1e-06]
[1729828176310,1.21912411,68045.0,68044.0,1e-06]
[1729828176726,1.22812411,68045.0,68044.0,1e-06]
[1729828176930,1.02262041,68045.0,68044.0,1e-06]
[1729828177141,1.02062041,68045.0,68044.0,1e-06]
[1729828177745,1.17112422,68045.0,68044.0,1e-06]
[1729828177998,1.17712422,68045.0,68044.0,0.001001]
[1729828178205,1.38262792,68045.0,68044.0,0.001001]
[1729828178830,1.23212411,68045.0,68044.0,0.001001]
[1729828179870,1.24061829,68045.0,68044.0,0.001001]
[1729828182412,1.24061829,68045.0,68031.0,0.001662]
[1729828182413,0.005,68034.0,68031.0,0.001662]
[1729828182646,0.34974085,68032.0,68031.0,0.001662]
[1729828182865,0.66195503,68032.0,68031.0,0.001662]
[1729828183285,0.77143272,68032.0,68031.0,0.001662]
[1729828183459,0.66195503,68032.0,68031.0,0.001662]
[1729828184393,0.77143272,68032.0,68031.0,0.001662]
[1729828184596,0.77147534,68032.0,68031.0,0.001662]
[1729828185399,0.66195633,68032.0,68031.0,0.001662]
[1729828186481,0.66395633,68032.0,68031.0,0.001662]
[1729828187129,0.83746014,68032.0,68031.0,0.001662]
[1729828187341,0.83546014,68032.0,68031.0,0.001662]
[1729828187796,0.70797152,68032.0,68031.0,0.001662]
[1729828190123,0.70997152,68032.0,68031.0,0.001662]
[1729828191263,0.71252913,68032.0,68031.0,0.001662]
[1729828191476,0.70997152,68032.0,68031.0,0.001662]
[1729828191704,0.70797152,68032.0,68031.0,0.001662]
[1729828192188,0.58221967,68032.0,68031.0,0.175362]
[1729828192659,0.420508,68032.0,68031.0,0.175362]
[1729828192895,0.48628302,68032.0,68031.0,0.175362]
[1729828193322,0.420508,68032.0,68031.0,0.175362]
[1729828193533,0.48628302,68032.0,68031.0,0.175362]
[1729828194190,0.4862956,68032.0,68031.0,0.175362]
[1729828195301,0.4863089,68032.0,68031.0,0.175362]
[1729828195516,0.58247658,68032.0,68031.0,0.175362]
[1729828196575,0.67021112,68032.0,68031.0,0.175362]
[1729828198799,0.67028726,68032.0,68031.0,0.175362]
[1729828199642,0.58251308,68032.0,68031.0,0.175362]
[1729828201628,0.420508,68032.0,68031.0,0.175362]
[1729828202685,0.58265678,68032.0,68031.0,0.001662]
[1729828202906,0.147019,68018.0,68017.0,0.0766]
[1729828203162,0.29752281,68018.0,68017.0,0.0766]
[1729828205778,0.29752281,68018.0,68017.0,0.077425]
[1729828207923,0.29403,68021.0,68017.0,0.077425]
[1729828207924,0.147017,68019.0,68017.0,0.077425]
[1729828208130,0.15050381,68019.0,68017.0,0.077425]
[1729828208573,0.147019,68018.0,68017.0,0.077425]
[1729828208774,0.15050381,68019.0,68017.0,0.077425]
[1729828209018,0.1,68030.0,68019.0,0.0752]
[1729828209218,0.15050381,68029.0,68024.0,0.10275185]
[1729828209385,0.44449781,68029.0,68026.0,0.10275185]
[1729828209635,0.44449781,68029.0,68023.0,0.10275185]
[1729828209803,0.29750181,68029.0,68024.0,0.1666]
[1729828210004,0.147,68027.0,68024.0,0.1666]
[1729828210153,0.15050381,68027.0,68024.0,0.1666]
[1729828210353,0.147004,68025.0,68024.0,0.1666]
[1729828210561,0.15050381,68027.0,68024.0,0.1666]
[1729828210763,0.01,68026.0,68024.0,0.1666]
[1729828210970,0.157003,68026.0,68024.0,0.1666]
[1729828211424,0.01,68026.0,68024.0,0.1666]
[1729828211639,0.147004,68025.0,68024.0,0.1666]
[1729828212081,0.01,68026.0,68024.0,0.1666]
[1729828212294,0.157002,68026.0,68024.0,0.1666]
[1729828212504,0.01,68026.0,68024.0,0.1666]
[1729828212922,0.147004,68025.0,68024.0,0.1666]
[1729828213342,0.01,68026.0,68024.0,0.1666]
[1729828213567,0.157002,68026.0,68024.0,0.1666]
[1729828214483,0.147004,68025.0,68024.0,0.1666]
[1729828214699,0.01,68026.0,68024.0,0.1666]
[1729828214910,0.147004,68025.0,68024.0,0.1666]
[1729828215318,0.01,68026.0,68025.0,0.147004]
[1729828215516,0.04392864,68027.0,68025.0,0.147004]
[1729828215517,0.04392864,68027.0,68025.0,0.0914]
[1729828215728,0.04392864,68027.0,68026.0,0.10275185]
[1729828216332,0.04392864,68027.0,68026.0,0.42135385]
[1729828216534,0.04392864,68027.0,68026.0,0.5241057]
[1729828216696,0.04392864,68027.0,68026.0,0.42135385]
[1729828218652,0.148641,68032.0,68027.0,0.005]
[1729828218925,0.00165,68032.0,68031.0,0.318591]
[1729828219164,0.00165,68032.0,68031.0,0.328591]
[1729828223162,0.00165,68032.0,68031.0,0.58184666]
[1729828224059,0.00165,68032.0,68031.0,0.47909481]
[1729828224288,0.00165,68032.0,68031.0,0.58184666]
[1729828225263,0.00165,68032.0,68031.0,0.47909481]
[1729828236415,0.00165,68032.0,68031.0,0.52503391]
[1729828238948,0.00165,68032.0,68031.0,0.47909481]
[1729828240922,0.00165,68032.0,68031.0,0.328591]
[1729828241212,0.00165,68032.0,68031.0,0.015]
[1729828241434,0.148639,68032.0,68031.0,0.000825]
[1729828243277,0.36904087,68032.0,68031.0,0.000825]
[1729828243507,0.148639,68032.0,68031.0,0.000825]
[1729828245787,0.51954468,68032.0,68031.0,0.000825]
[1729828246008,0.29914281,68032.0,68031.0,0.000825]
[1729828246238,0.38004281,68032.0,68031.0,0.000825]
[1729828246696,0.38204281,68032.0,68031.0,0.000825]
[1729828247800,0.38004281,68032.0,68031.0,0.000825]
[1729828248039,0.29914281,68032.0,68031.0,0.000825]
[1729828256629,0.148639,68032.0,68031.0,0.000825]
[1729828262271,0.00165,68032.0,68031.0,0.147816]
[1729828263323,0.00165,68032.0,68031.0,0.228216]
[1729828263532,0.00165,68032.0,68031.0,0.319316]
[1729828266651,0.00165,68032.0,68031.0,0.152816]
[1729828267639,0.00165,68032.0,68031.0,0.25576706]
[1729828272518,0.00165,68032.0,68031.0,0.152816]
[1729828279678,0.00165,68032.0,68031.0,0.005825]
[1729828280110,0.00165,68032.0,68031.0,0.152816]
[1729828281278,0.00165,68032.0,68031.0,0.005825]
[1729828281726,0.00165,68032.0,68031.0,0.152816]
[1729828282650,0.00165,68032.0,68031.0,0.000825]
[1729828283522,0.00165,68032.0,68031.0,0.005825]
[1729828283750,0.00165,68032.0,68031.0,0.000825]
[1729828284415,0.00165,68032.0,68031.0,0.152816]
[1729828284883,0.00165,68032.0,68031.0,0.000825]
[1729828285543,0.00165,68032.0,68031.0,0.147816]
[1729828285763,0.00165,68032.0,68031.0,0.152816]
[1729828287083,0.00165,68032.0,68031.0,0.005825]
[1729828287313,0.00165,68032.0,68031.0,0.147816]
[1729828287501,0.00165,68032.0,68031.0,0.000825]
[1729828289098,0.00165,68032.0,68031.0,0.147816]
[1729828289630,0.148639,68032.0,68031.0,0.000825]
[1729828290105,0.318139,68032.0,68031.0,0.000825]
[1729828291329,0.46864281,68032.0,68031.0,0.000825]
[1729828291584,0.63074966,68032.0,68031.0,0.000825]
[1729828292285,0.7185801,68032.0,68031.0,0.000825]
[1729828292523,0.63074966,68032.0,68031.0,0.000825]
[1729828292987,0.74054731,68032.0,68031.0,0.000825]
[1729828293241,0.75431978,68032.0,68031.0,0.000825]
[1729828293720,0.75631576,68032.0,68031.0,0.000825]
[1729828294414,0.74254731,68032.0,68031.0,0.000825]
[1729828294856,0.74054731,68032.0,68031.0,0.000825]
[1729828295785,0.74254731,68032.0,68031.0,0.000825]
[1729828296405,0.63274966,68032.0,68031.0,0.000825]
[1729828297117,0.74254731,68032.0,68031.0,0.000825]
[1729828297368,0.73274966,68032.0,68031.0,0.000825]
[1729828297574,0.84254731,68032.0,68031.0,0.000825]
[1729828298417,0.74450596,68032.0,68031.0,0.000825]
[1729828299410,0.73074966,68032.0,68031.0,0.000825]
[1729828299825,0.84054731,68032.0,68031.0,0.000825]
[1729828301323,0.73074966,68032.0,68031.0,0.000825]
[1729828301950,0.81853952,68032.0,68031.0,0.000825]
[1729828302722,0.81845286,68032.0,68031.0,0.000825]
[1729828306461,0.82045286,68032.0,68031.0,0.000825]
[1729828306672,0.81845286,68032.0,68031.0,0.000825]
[1729828306884,0.73066786,68032.0,68031.0,0.000825]
[1729828307302,0.74642156,68032.0,68031.0,0.000825]
[1729828308148,0.73266786,68032.0,68031.0,0.000825]
[1729828308368,0.74642158,68032.0,68031.0,0.000825]
[1729828308578,0.76942158,68032.0,68031.0,0.000825]
[1729828308798,0.76742158,68032.0,68031.0,0.000825]
[1729828309237,0.89909908,68032.0,68031.0,0.000825]
[1729828309654,0.76942158,68032.0,68031.0,0.000825]
[1729828310281,0.75822149,68032.0,68031.0,0.000825]
[1729828312385,0.75817574,68032.0,68031.0,0.000825]
[1729828314782,0.76017574,68032.0,68031.0,0.000825]
[1729828315185,0.75762211,68032.0,68031.0,0.000825]
[1729828317073,0.75757681,68032.0,68031.0,0.000825]
[1729828317720,0.75557681,68032.0,68031.0,0.000825]
[1729828318148,0.75757681,68032.0,68031.0,0.000825]
[1729828318390,0.75557681,68032.0,68031.0,0.000825]
[1729828320126,0.75757681,68032.0,68031.0,0.000825]
[1729828320359,1.23643355,68032.0,68031.0,0.000825]
[1729828320578,0.99713138,68032.0,68031.0,0.000825]
[1729828321029,0.8655044,68032.0,68031.0,0.000825]
[1729828321245,0.9618044,68032.0,68031.0,0.000825]
[1729828321449,0.97757026,68032.0,68031.0,0.000825]
[1729828321858,0.54545506,68025.0,68024.0,0.000825]
[1729828322092,0.87163526,68025.0,68024.0,0.000825]
[1729828322301,0.86963526,68025.0,68024.0,0.000825]
[1729828323602,0.7666842,68025.0,68024.0,0.000825]
[1729828324010,0.7686842,68025.0,68024.0,0.000825]
[1729828324995,0.76868275,68025.0,68024.0,0.000825]
[1729828325607,0.76668275,68025.0,68024.0,0.000825]
[1729828325812,0.76868275,68025.0,68024.0,0.000825]
[1729828326425,0.76667758,68025.0,68024.0,0.000825]
[1729828327620,0.77520846,68025.0,68024.0,0.000825]
[1729828329594,0.76667758,68025.0,68024.0,0.000825]
[1729828329806,0.76867758,68025.0,68024.0,0.000825]
[1729828331142,0.76667758,68025.0,68024.0,0.000825]
[1729828331728,0.76867758,68025.0,68024.0,0.000825]
[1729828331926,0.7687687,68025.0,68024.0,0.000825]
[1729828335485,0.7667687,68025.0,68024.0,0.000825]
[1729828335720,0.7687687,68025.0,68024.0,0.000825]
[1729828336364,0.91927251,68025.0,68024.0,0.000825]
[1729828338340,1.05101969,68025.0,68024.0,0.000825]
[1729828338757,1.05401969,68025.0,68024.0,0.000825]
[1729828339190,1.05404218,68025.0,68024.0,0.000825]
[1729828339401,0.92227251,68025.0,68024.0,0.000825]
[1729828341712,0.7737687,68025.0,68024.0,0.000825]
[1729828341965,0.5732687,68025.0,68024.0,0.000825]
[1729828342679,0.4732687,68025.0,68024.0,0.000825]
[1729828343694,0.58310652,68025.0,68024.0,0.000825]
[1729828343934,0.68310652,68025.0,68024.0,0.000825]
[1729828344182,0.4112685,68025.0,68024.0,0.000825]
[1729828344411,0.68328788,68025.0,68024.0,0.000825]
[1729828344622,0.5734504,68025.0,68024.0,0.000825]
[1729828345092,0.68329645,68025.0,68024.0,0.000825]
[1729828345324,0.5734504,68025.0,68024.0,0.000825]
[1729828345834,0.5734654,68025.0,68024.0,0.000825]
[1729828346061,0.68332047,68025.0,68024.0,0.000825]
[1729828346287,0.5734654,68025.0,68024.0,0.000825]
[1729828348637,0.55968971,68025.0,68024.0,0.000825]
[1729828348877,0.57346585,68025.0,68024.0,0.000825]
[1729828350278,0.55968971,68025.0,68024.0,0.000825]
[1729828350514,0.57346556,68025.0,68024.0,0.000825]
[1729828352353,0.5734654,68025.0,68024.0,0.000825]
[1729828353261,0.4734654,68025.0,68024.0,0.000825]
[1729828353526,0.2267466,68025.0,68024.0,0.076825]
[1729828353792,0.04397965,68027.0,68024.0,0.076825]
[1729828354040,0.147001,68027.0,68026.0,0.076]
[1729828357060,0.29750481,68027.0,68026.0,0.076]
[1729828357278,0.147004,68025.0,68024.0,0.000825]
[1729828359457,0.34148746,68025.0,68024.0,0.000825]
[1729828359693,0.29750781,68025.0,68024.0,0.000825]
[1729828359938,0.56963542,68025.0,68024.0,0.000825]
[1729828360397,0.57163542,68025.0,68024.0,0.000825]
[1729828360615,0.56169365,68025.0,68024.0,0.000825]
[1729828361818,0.55969365,68025.0,68024.0,0.000825]
[1729828362313,0.56169365,68025.0,68024.0,0.000825]
[1729828363260,0.55969365,68025.0,68024.0,0.000825]
[1729828363943,0.56169365,68025.0,68024.0,0.000825]
[1729828364419,0.55969365,68025.0,68024.0,0.000825]
[1729828366520,0.69149862,68025.0,68024.0,0.000825]
[1729828367117,0.55969365,68025.0,68024.0,0.000825]
[1729828367360,0.69149862,68025.0,68024.0,0.000825]
[1729828367577,0.55969365,68025.0,68024.0,0.000825]
[1729828369381,0.69148971,68025.0,68024.0,0.000825]
[1729828370199,0.69348971,68025.0,68024.0,0.000825]
[1729828370463,0.55969365,68025.0,68024.0,0.000825]
[1729828370671,0.69148971,68025.0,68024.0,0.000825]
[1729828370935,0.55969365,68025.0,68024.0,0.000825]
[1729828372813,0.55968264,68025.0,68024.0,0.000825]
[1729828376885,0.56168264,68025.0,68024.0,0.000825]
[1729828377512,0.55968264,68025.0,68024.0,0.000825]
[1729828381246,0.559685,68025.0,68024.0,0.000825]
[1729828384100,0.561685,68025.0,68024.0,0.000825]
[1729828385842,0.559685,68025.0,68024.0,0.000825]
[1729828390501,0.39750781,68025.0,68024.0,0.000825]
[1729828390727,0.5597267,68025.0,68024.0,0.000825]
[1729828391356,0.66959583,68025.0,68024.0,0.000825]
[1729828392104,0.55972339,68025.0,68024.0,0.000825]
[1729828392957,0.64761037,68025.0,68024.0,0.000825]
[1729828393361,0.55972339,68025.0,68024.0,0.000825]
[1729828393537,0.64760901,68025.0,68024.0,0.000825]
[1729828393737,0.55972339,68025.0,68024.0,0.000825]
[1729828393943,0.66958368,68025.0,68024.0,0.000825]
[1729828394887,0.55972339,68025.0,68024.0,0.000825]
[1729828398194,0.6695808,68025.0,68024.0,0.000825]
[1729828398405,0.55972339,68025.0,68024.0,0.000825]
[1729828398603,0.66957797,68025.0,68024.0,0.000825]
[1729828398904,0.55972339,68025.0,68024.0,0.000825]
[1729828400493,0.66957797,68025.0,68024.0,0.000825]
[1729828401528,0.67157797,68025.0,68024.0,0.000825]
[1729828402247,0.66957797,68025.0,68024.0,0.000825]
[1729828402449,0.55972339,68025.0,68024.0,0.000825]
[1729828412980,0.66968499,68025.0,68024.0,0.000825]
[1729828413111,0.41918118,68025.0,68024.0,0.171225]
[1729828413898,0.30921958,68025.0,68024.0,0.171225]
[1729828414100,0.41918118,68025.0,68024.0,0.171225]
[1729828414325,0.30921958,68025.0,68024.0,0.171225]
[1729828414729,0.41934298,68025.0,68024.0,0.171225]
[1729828416027,0.30937645,68025.0,68024.0,0.171225]
[1729828416423,0.41934298,68025.0,68024.0,0.171225]
[1729828417559,0.41934298,68025.0,68024.0,0.079425]
[1729828417901,0.41934298,68025.0,68024.0,0.000825]
[1729828419594,0.41928362,68025.0,68024.0,0.000825]
[1729828422628,0.30934106,68025.0,68024.0,0.000825]
[1729828422849,0.41928362,68025.0,68024.0,0.000825]
[1729828424541,0.41932092,68025.0,68024.0,0.000825]
[1729828428380,0.3093633,68025.0,68024.0,0.000825]
[1729828429224,0.3093633,68025.0,68021.0,0.0938]
[1729828429225,0.147011,68022.0,68021.0,0.08958734]
[1729828429449,0.30940593,68022.0,68021.0,0.08958734]
[1729828429676,0.30940788,68022.0,68021.0,0.08958734]
[1729828430393,0.3973933,68022.0,68021.0,0.08958734]
[1729828430615,0.30940788,68022.0,68021.0,0.08958734]
[1729828430842,0.147013,68021.0,68020.0,0.0755]
[1729828431039,0.21300614,68021.0,68020.0,0.0755]
[1729828431474,0.147013,68021.0,68020.0,0.0755]
[1729828431713,0.21300874,68021.0,68020.0,0.0755]
[1729828432187,0.147013,68021.0,68020.0,0.0755]
[1729828434252,0.06600507,68021.0,68020.0,0.0755]
[1729828434477,0.21301807,68021.0,68020.0,0.0755]
[1729828434695,0.06600507,68021.0,68020.0,0.0755]
[1729828435175,0.21301807,68021.0,68020.0,0.0755]
[1729828436357,0.147013,68021.0,68020.0,0.0755]
[1729828437109,0.3094748,68021.0,68020.0,0.0755]
[1729828437355,0.39746022,68021.0,68020.0,0.0755]
[1729828437585,0.147017,68020.0,68017.0,0.099225]
[1729828437852,0.04401279,68018.0,68017.0,0.099225]
[1729828438515,0.19103179,68018.0,68017.0,0.099225]
[1729828438935,0.19103179,68018.0,68017.0,0.000825]
[1729828439210,0.19103332,68018.0,68017.0,0.000825]
[1729828440519,0.04401432,68018.0,68017.0,0.000825]
[1729828440730,0.147019,68018.0,68017.0,0.000825]
[1729828441152,0.21304048,68018.0,68017.0,0.000825]
[1729828441380,0.22682813,68018.0,68017.0,0.000825]
[1729828442364,0.16080665,68018.0,68017.0,0.000825]
[1729828442592,0.2268348,68018.0,68017.0,0.000825]
[1729828446111,0.41133533,68018.0,68017.0,0.000825]
[1729828446756,0.68679958,68018.0,68017.0,0.000825]
[1729828446966,0.77799958,68018.0,68017.0,0.000825]
[1729828447188,0.67504852,68018.0,68017.0,0.000825]
[1729828447666,0.5650016,68018.0,68017.0,0.000825]
[1729828449850,0.84735266,68018.0,68017.0,0.000825]
[1729828450074,0.84935266,68018.0,68017.0,0.000825]
[1729828450317,0.83556501,68018.0,68017.0,0.000825]
[1729828450989,0.84400749,68018.0,68017.0,0.000825]
[1729828452108,0.84600749,68018.0,68017.0,0.000825]
[1729828452489,0.68351635,68018.0,68017.0,0.000825]
[1729828453312,0.75552766,68018.0,68017.0,0.000825]
[1729828453728,0.91778982,68018.0,68017.0,0.000825]
[1729828454503,0.91578982,68018.0,68017.0,0.000825]
[1729828454878,0.75352766,68018.0,68017.0,0.000825]
[1729828455086,0.75552766,68018.0,68017.0,0.000825]
[1729828457781,0.71151635,68018.0,68017.0,0.000825]
[1729828458007,0.70951635,68018.0,68017.0,0.000825]
[1729828458340,0.79781635,68018.0,68017.0,0.000825]
[1729828459127,0.79981635,68018.0,68017.0,0.000825]
[1729828459294,0.68351635,68018.0,68017.0,0.000825]
[1729828460456,0.73833996,68018.0,68017.0,0.000825]
[1729828460675,0.70951635,68018.0,68017.0,0.000825]
[1729828462565,0.71151635,68018.0,68017.0,0.000825]
[1729828463844,0.70951635,68018.0,68017.0,0.000825]
[1729828465106,0.87155553,68018.0,68017.0,0.000825]
[1729828465323,0.87411009,68018.0,68017.0,0.000825]
[1729828465805,0.87155553,68018.0,68017.0,0.000825]
[1729828466483,0.87150034,68018.0,68017.0,0.000825]
[1729828467424,0.87350034,68018.0,68017.0,0.000825]
[1729828467923,0.87150034,68018.0,68017.0,0.000825]
[1729828468443,0.85684928,68018.0,68017.0,0.000825]
[1729828468687,0.95980034,68018.0,68017.0,0.000825]
[1729828470789,0.96180034,68018.0,68017.0,0.000825]
[1729828471520,0.96174219,68018.0,68017.0,0.000825]
[1729828472209,0.95974219,68018.0,68017.0,0.000825]
[1729828474059,0.87344219,68018.0,68017.0,0.000825]
[1729828476237,0.87343195,68018.0,68017.0,0.000825]
[1729828477130,0.86843195,68018.0,68017.0,0.000825]
[1729828477597,0.86643195,68018.0,68017.0,0.000825]
[1729828478100,0.87143195,68018.0,68017.0,0.000825]
[1729828478324,0.86643195,68018.0,68017.0,0.000825]
[1729828478558,0.87143195,68018.0,68017.0,0.000825]
[1729828481118,0.87148763,68018.0,68017.0,0.000825]
[1729828483422,1.02199144,68018.0,68017.0,0.000825]
[1729828484709,0.87148763,68018.0,68017.0,0.000825]
[1729828486964,1.00312143,68018.0,68017.0,0.000825]
[1729828487188,0.87148763,68018.0,68017.0,0.000825]
[1729828487607,1.00312143,68018.0,68017.0,0.000825]
[1729828488685,0.87148763,68018.0,68017.0,0.000825]
[1729828489530,1.0032762,68018.0,68017.0,0.000825]
[1729828490266,1.00327417,68018.0,68017.0,0.000825]
[1729828490497,0.87148763,68018.0,68017.0,0.000825]
[1729828490728,0.87171584,68018.0,68017.0,0.000825]
[1729828490966,0.87427009,68018.0,68017.0,0.000825]
[1729828491891,1.01150367,68018.0,68017.0,0.000825]
[1729828492497,1.02256676,68018.0,68017.0,0.000825]
[1729828492703,0.87427009,68018.0,68017.0,0.000825]
[1729828493661,1.02270469,68018.0,68017.0,0.000825]
[1729828494426,0.87427009,68018.0,68017.0,0.000825]
[1729828494602,1.02270469,68018.0,68017.0,0.000825]
[1729828495028,0.87127009,68018.0,68017.0,0.000825]
[1729828495453,0.7140706,68018.0,68017.0,0.000825]
[1729828495655,0.87654158,68018.0,68017.0,0.000825]
[1729828497951,0.92560954,68018.0,68017.0,0.000825]
[1729828498353,0.87654158,68018.0,68017.0,0.000825]
[1729828498765,0.87454158,68018.0,68017.0,0.000825]
[1729828501914,0.77159052,68018.0,68017.0,0.000825]
[1729828502144,0.87454158,68018.0,68017.0,0.000825]
[1729828503010,0.87654158,68018.0,68017.0,0.000825]
[1729828504671,0.87454158,68018.0,68017.0,0.000825]
[1729828505084,0.87654158,68018.0,68017.0,0.000825]
[1729828506421,0.87454158,68018.0,68017.0,0.000825]
[1729828506823,0.87654158,68018.0,68017.0,0.000825]
[1729828507051,1.00055181,68018.0,68017.0,0.000825]
[1729828507230,0.87454158,68018.0,68017.0,0.000825]
[1729828508419,0.87451938,68018.0,68017.0,0.000825]
[1729828509229,0.72750038,68018.0,68017.0,0.000825]
[1729828509440,0.87451938,68018.0,68017.0,0.000825]
[1729828510220,0.79511938,68018.0,68017.0,0.000825]
[1729828510904,0.79711938,68018.0,68017.0,0.000825]
[1729828511313,0.92714379,68018.0,68017.0,0.000825]
[1729828511517,0.92914379,68018.0,68017.0,0.000825]
[1729828511730,0.9291431,68018.0,68017.0,0.000825]
[1729828512859,0.9271431,68018.0,68017.0,0.000825]
[1729828513075,0.82119204,68018.0,68017.0,0.000825]
[1729828513289,0.80994576,68018.0,68017.0,0.000825]
[1729828515411,0.80794576,68018.0,68017.0,0.000825]
[1729828515614,0.83096551,68018.0,68017.0,0.000825]
[1729828517493,0.83092227,68018.0,68017.0,0.000825]
[1729828517704,0.83292227,68018.0,68017.0,0.000825]
[1729828517908,0.83292721,68018.0,68017.0,0.000825]
[1729828519200,0.70092049,68018.0,68017.0,0.000825]
[1729828521795,0.84942805,68018.0,68017.0,0.000825]
[1729828522223,0.70092049,68018.0,68017.0,0.000825]
[1729828522430,0.59796943,68018.0,68017.0,0.000825]
[1729828522640,0.58752695,68018.0,68017.0,0.000825]
[1729828522852,0.5849727,68018.0,68017.0,0.000825]
[1729828523057,0.68792376,68018.0,68017.0,0.098125]